[Event "Titled Tuesday Blitz November 07 Late 2023"]
[White "Przybylski, Wojciech"]
[Black "Kazakov, Mikhail"]
[WhiteFideId "1117599"]
[BlackFideId "14102749"]
[WhiteElo "2524"]
[BlackElo "2451"]
[Result "0-1"]
[Round "10"]
[TimeControl "180+1"]
[Date "2023.11.07"]
[WhiteClock "0:00:08"]
[BlackClock "0:00:07"]
[Board "54"]

1. e4 {[%clk 0:03:00]}  e5 {[%clk 0:02:50]} 2. Nf3 {[%clk 0:03:00]}  Nc6 {[%clk 0:02:50]} 3. Bb5 {[%clk 0:02:59]}  a6 {[%clk 0:02:50]} 4. Ba4 {[%clk 0:02:58]}  Nf6 {[%clk 0:02:50]} 5. O-O {[%clk 0:02:56]}  b5 {[%clk 0:02:49]} 6. Bb3 {[%clk 0:02:55]}  Be7 {[%clk 0:02:50]} 7. d3 {[%clk 0:02:55]}  d6 {[%clk 0:02:49]} 8. h3 {[%clk 0:02:54]}  O-O {[%clk 0:02:49]} 9. c3 {[%clk 0:02:53]}  h6 {[%clk 0:02:47]} 10. Re1 {[%clk 0:02:53]}  Nd7 {[%clk 0:02:47]} 11. Nbd2 {[%clk 0:02:52]}  Nc5 {[%clk 0:02:46]} 12. Bc2 {[%clk 0:02:52]}  Ne6 {[%clk 0:02:46]} 13. Nf1 {[%clk 0:02:46]}  Bg5 {[%clk 0:02:43]} 14. Ne3 {[%clk 0:02:43]}  Nf4 {[%clk 0:02:32]} 15. d4 {[%clk 0:02:42]}  Re8 {[%clk 0:02:14]} 16. a4 {[%clk 0:02:41]}  Rb8 {[%clk 0:01:59]} 17. axb5 {[%clk 0:02:36]}  axb5 {[%clk 0:02:00]} 18. Bb3 {[%clk 0:02:33]}  exd4 {[%clk 0:01:43]} 19. Nxd4 {[%clk 0:02:30]}  Nxd4 {[%clk 0:01:39]} 20. Qxd4 {[%clk 0:02:27]}  Bf6 {[%clk 0:01:31]} 21. Qa7 {[%clk 0:02:26]}  Rb7 {[%clk 0:01:22]} 22. Qa2 {[%clk 0:02:25]}  Be6 {[%clk 0:01:16]} 23. Bxe6 {[%clk 0:02:13]}  Rxe6 {[%clk 0:01:17]} 24. Nd5 {[%clk 0:01:46]}  Nxd5 {[%clk 0:01:05]} 25. Qxd5 {[%clk 0:01:45]}  Rb8 {[%clk 0:01:05]} 26. Bf4 {[%clk 0:01:31]}  Be5 {[%clk 0:01:01]} 27. Be3 {[%clk 0:01:20]}  Qe8 {[%clk 0:00:57]} 28. Ra7 {[%clk 0:01:16]}  c6 {[%clk 0:00:55]} 29. Qd2 {[%clk 0:01:15]}  Bf6 {[%clk 0:00:46]} 30. Bf4 {[%clk 0:00:46]}  Rd8 {[%clk 0:00:44]} 31. Qe2 {[%clk 0:00:27]}  d5 {[%clk 0:00:37]} 32. e5 {[%clk 0:00:27]}  Be7 {[%clk 0:00:25]} 33. Bg3 {[%clk 0:00:25]}  Bc5 {[%clk 0:00:23]} 34. Rc7 {[%clk 0:00:23]}  Rg6 {[%clk 0:00:20]} 35. Qf3 {[%clk 0:00:22]}  Bb6 {[%clk 0:00:17]} 36. Rb7 {[%clk 0:00:22]}  Rb8 {[%clk 0:00:17]} 37. Rxb8 {[%clk 0:00:21]}  Qxb8 {[%clk 0:00:17]} 38. e6 {[%clk 0:00:21]}  Qe8 {[%clk 0:00:14]} 39. exf7+ {[%clk 0:00:19]}  Qxf7 {[%clk 0:00:15]} 40. Qxf7+ {[%clk 0:00:17]}  Kxf7 {[%clk 0:00:16]} 41. Kh2 {[%clk 0:00:16]}  Re6 {[%clk 0:00:15]} 42. Ra1 {[%clk 0:00:17]}  Bc5 {[%clk 0:00:11]} 43. Ra8 {[%clk 0:00:16]}  Be7 {[%clk 0:00:10]} 44. Rc8 {[%clk 0:00:15]}  Kg6 {[%clk 0:00:09]} 45. f3 {[%clk 0:00:11]}  Kf7 {[%clk 0:00:10]} 46. Bf2 {[%clk 0:00:11]}  Bf6 {[%clk 0:00:11]} 47. Kg1 {[%clk 0:00:08]}  b4 {[%clk 0:00:11]} 48. cxb4 {[%clk 0:00:06]}  Bxb2 {[%clk 0:00:11]} 49. f4 {[%clk 0:00:06]}  h5 {[%clk 0:00:09]} 50. g4 {[%clk 0:00:05]}  hxg4 {[%clk 0:00:09]} 51. hxg4 {[%clk 0:00:06]}  g6 {[%clk 0:00:10]} 52. Kg2 {[%clk 0:00:06]}  Ke7 {[%clk 0:00:08]} 53. Kf3 {[%clk 0:00:06]}  Kd7 {[%clk 0:00:08]} 54. Rg8 {[%clk 0:00:06]}  Bc3 {[%clk 0:00:06]} 55. Bc5 {[%clk 0:00:06]}  d4 {[%clk 0:00:06]} 56. Rg7+ {[%clk 0:00:05]}  Kc8 {[%clk 0:00:06]} 57. Rg8+ {[%clk 0:00:05]}  Kb7 {[%clk 0:00:06]} 58. Rd8 {[%clk 0:00:05]}  Ka6 {[%clk 0:00:06]} 59. f5 {[%clk 0:00:05]}  gxf5 {[%clk 0:00:05]} 60. gxf5 {[%clk 0:00:06]}  Rh6 {[%clk 0:00:05]} 61. Rd7 {[%clk 0:00:04]}  Kb5 {[%clk 0:00:05]} 62. Kg4 {[%clk 0:00:04]}  Kc4 {[%clk 0:00:04]} 63. Kg5 {[%clk 0:00:04]}  Rh1 {[%clk 0:00:03]} 64. f6 {[%clk 0:00:04]}  Rg1+ {[%clk 0:00:03]} 65. Kf5 {[%clk 0:00:04]}  Rf1+ {[%clk 0:00:04]} 66. Kg6 {[%clk 0:00:04]}  d3 {[%clk 0:00:04]} 67. f7 {[%clk 0:00:04]}  Rf6+ {[%clk 0:00:04]} 68. Kg5 {[%clk 0:00:04]}  d2 {[%clk 0:00:04]} 69. Rxd2 {[%clk 0:00:04]}  Rxf7 {[%clk 0:00:04]} 70. Re2 {[%clk 0:00:03]}  Bxb4 {[%clk 0:00:02]} 71. Bxb4 {[%clk 0:00:03]}  Kxb4 {[%clk 0:00:03]} 72. Kg6 {[%clk 0:00:02]}  Rf1 {[%clk 0:00:03]} 73. Rb2+ {[%clk 0:00:02]}  Kc3 {[%clk 0:00:03]} 74. Rf2 {[%clk 0:00:02]}  Rxf2 {[%clk 0:00:02]} 75. Kg5 {[%clk 0:00:03]}  c5 {[%clk 0:00:02]} 76. Kg4 {[%clk 0:00:03]}  Rf8 {[%clk 0:00:02]} 77. Kg3 {[%clk 0:00:04]}  c4 {[%clk 0:00:03]} 78. Kg4 {[%clk 0:00:05]}  Kb3 {[%clk 0:00:03]} 79. Kg5 {[%clk 0:00:06]}  c3 {[%clk 0:00:04]} 80. Kg6 {[%clk 0:00:07]}  Rf1 {[%clk 0:00:05]} 81. Kg7 {[%clk 0:00:08]}  c2 {[%clk 0:00:05]} 82. Kh6 {[%clk 0:00:09]}  c1=Q+ {[%clk 0:00:06]} 83. Kh7 {[%clk 0:00:08]}  Qd2 {[%clk 0:00:07]} 0-1


[Site "https://www.chess.com"]

[Event "Titled Tuesday Blitz November 07 Late 2023"]
[White "Reprintsev, Alexander"]
[Black "Halak, Miklos"]
[WhiteFideId "14100541"]
[BlackFideId "726400"]
[WhiteElo "2502"]
[BlackElo "2445"]
[Result "1-0"]
[Round "10"]
[TimeControl "180+1"]
[Date "2023.11.07"]
[WhiteClock "0:00:36"]
[BlackClock "0:00:10"]
[Board "55"]

1. e4 {[%clk 0:02:59]}  c6 {[%clk 0:02:59]} 2. Nf3 {[%clk 0:02:57]}  d5 {[%clk 0:02:59]} 3. e5 {[%clk 0:02:57]}  c5 {[%clk 0:02:59]} 4. Be2 {[%clk 0:02:56]}  Nc6 {[%clk 0:02:59]} 5. O-O {[%clk 0:02:56]}  Bg4 {[%clk 0:02:57]} 6. c4 {[%clk 0:02:56]}  e6 {[%clk 0:02:43]} 7. Re1 {[%clk 0:02:46]}  d4 {[%clk 0:02:40]} 8. Nxd4 {[%clk 0:02:45]}  Qxd4 {[%clk 0:02:34]} 9. Bxg4 {[%clk 0:02:44]}  Nxe5 {[%clk 0:02:34]} 10. Qa4+ {[%clk 0:02:27]}  Nc6 {[%clk 0:02:21]} 11. Bf3 {[%clk 0:02:26]}  Rc8 {[%clk 0:02:20]} 12. Bxc6+ {[%clk 0:02:18]}  Rxc6 {[%clk 0:02:19]} 13. Qxa7 {[%clk 0:02:18]}  Bd6 {[%clk 0:02:02]} 14. Qa8+ {[%clk 0:02:05]}  Ke7 {[%clk 0:01:59]} 15. Qxb7+ {[%clk 0:02:05]}  Rc7 {[%clk 0:01:59]} 16. Qf3 {[%clk 0:02:01]}  Qxc4 {[%clk 0:01:58]} 17. Na3 {[%clk 0:02:00]}  Qh4 {[%clk 0:01:51]} 18. g3 {[%clk 0:01:58]}  Qb4 {[%clk 0:01:49]} 19. b3 {[%clk 0:01:52]}  Nf6 {[%clk 0:01:43]} 20. Nc4 {[%clk 0:01:51]}  Rd8 {[%clk 0:01:40]} 21. Ba3 {[%clk 0:01:47]}  Qb8 {[%clk 0:01:35]} 22. d4 {[%clk 0:01:39]}  cxd4 {[%clk 0:01:08]} 23. Bxd6+ {[%clk 0:01:35]}  Rxd6 {[%clk 0:01:08]} 24. Nxd6 {[%clk 0:01:35]}  Kxd6 {[%clk 0:01:09]} 25. Qf4+ {[%clk 0:01:24]}  Ke7 {[%clk 0:01:09]} 26. Qxd4 {[%clk 0:01:20]}  Rc2 {[%clk 0:00:54]} 27. a4 {[%clk 0:01:12]}  Qxb3 {[%clk 0:00:43]} 28. a5 {[%clk 0:01:12]}  Qf3 {[%clk 0:00:28]} 29. a6 {[%clk 0:00:51]}  Ng4 {[%clk 0:00:25]} 30. Qb4+ {[%clk 0:00:47]}  Ke8 {[%clk 0:00:20]} 31. Qb8+ {[%clk 0:00:47]}  Ke7 {[%clk 0:00:20]} 32. Qb7+ {[%clk 0:00:47]}  Qxb7 {[%clk 0:00:18]} 33. axb7 {[%clk 0:00:47]}  Nxf2 {[%clk 0:00:16]} 34. b8=Q {[%clk 0:00:38]}  Nh3+ {[%clk 0:00:16]} 35. Kh1 {[%clk 0:00:38]}  Nf2+ {[%clk 0:00:16]} 36. Kg2 {[%clk 0:00:38]}  Ng4+ {[%clk 0:00:15]} 37. Kf3 {[%clk 0:00:35]}  Nxh2+ {[%clk 0:00:14]} 38. Ke3 {[%clk 0:00:36]}  Ng4+ {[%clk 0:00:10]} 39. Kd3 {[%clk 0:00:36]} 1-0


[Site "https://www.chess.com"]

[Event "Titled Tuesday Blitz November 07 Late 2023"]
[White "Su, Dion"]
[Black "Ventura Bolet, Maxim"]
[WhiteFideId "2029731"]
[BlackFideId "22238824"]
[WhiteElo "2426"]
[BlackElo "2496"]
[Result "0-1"]
[Round "10"]
[TimeControl "180+1"]
[Date "2023.11.07"]
[WhiteClock "0:00:49"]
[BlackClock "0:00:28"]
[Board "57"]

1. e4 {[%clk 0:03:00]}  Nf6 {[%clk 0:03:00]} 2. e5 {[%clk 0:02:48]}  Nd5 {[%clk 0:03:00]} 3. d4 {[%clk 0:02:43]}  d6 {[%clk 0:03:00]} 4. Nf3 {[%clk 0:02:43]}  dxe5 {[%clk 0:03:00]} 5. dxe5 {[%clk 0:02:43]}  Bg4 {[%clk 0:02:57]} 6. Bc4 {[%clk 0:02:42]}  c6 {[%clk 0:02:53]} 7. Nc3 {[%clk 0:02:41]}  e6 {[%clk 0:02:50]} 8. Qe2 {[%clk 0:02:38]}  Nd7 {[%clk 0:02:46]} 9. h3 {[%clk 0:02:22]}  Bxf3 {[%clk 0:02:46]} 10. gxf3 {[%clk 0:02:22]}  Qh4 {[%clk 0:02:40]} 11. Nxd5 {[%clk 0:02:15]}  cxd5 {[%clk 0:02:24]} 12. Bb5 {[%clk 0:02:14]}  a6 {[%clk 0:02:14]} 13. Bxd7+ {[%clk 0:02:11]}  Kxd7 {[%clk 0:02:15]} 14. Bd2 {[%clk 0:02:09]}  Rc8 {[%clk 0:02:11]} 15. O-O-O {[%clk 0:02:05]}  Qc4 {[%clk 0:02:08]} 16. Qxc4 {[%clk 0:02:05]}  Rxc4 {[%clk 0:02:09]} 17. b3 {[%clk 0:02:00]}  Rc6 {[%clk 0:02:07]} 18. Kb2 {[%clk 0:01:59]}  g6 {[%clk 0:02:05]} 19. Bg5 {[%clk 0:01:51]}  Bc5 {[%clk 0:02:00]} 20. c4 {[%clk 0:01:49]}  Bxf2 {[%clk 0:01:35]} 21. cxd5 {[%clk 0:01:43]}  exd5 {[%clk 0:01:36]} 22. Rxd5+ {[%clk 0:01:42]}  Ke6 {[%clk 0:01:36]} 23. Rhd1 {[%clk 0:01:42]}  Rhc8 {[%clk 0:01:37]} 24. R1d2 {[%clk 0:01:37]}  Be1 {[%clk 0:01:32]} 25. Rd1 {[%clk 0:01:30]}  Bc3+ {[%clk 0:01:26]} 26. Kb1 {[%clk 0:01:29]}  Bxe5 {[%clk 0:01:27]} 27. Rd7 {[%clk 0:01:25]}  f6 {[%clk 0:01:22]} 28. f4 {[%clk 0:01:21]}  Rc1+ {[%clk 0:01:05]} 29. Rxc1 {[%clk 0:01:19]}  Rxc1+ {[%clk 0:01:06]} 30. Kxc1 {[%clk 0:01:19]}  Kxd7 {[%clk 0:01:06]} 31. Bh6 {[%clk 0:01:14]}  Bd6 {[%clk 0:00:58]} 32. Kc2 {[%clk 0:01:14]}  Ke6 {[%clk 0:00:58]} 33. Kd3 {[%clk 0:01:13]}  Kf5 {[%clk 0:00:56]} 34. Kc4 {[%clk 0:01:13]}  Bxf4 {[%clk 0:00:52]} 35. Bf8 {[%clk 0:01:13]}  Be3 {[%clk 0:00:44]} 36. Kd5 {[%clk 0:01:12]}  Kf4 {[%clk 0:00:39]} 37. Kd6 {[%clk 0:00:57]}  Kg3 {[%clk 0:00:36]} 38. Kc7 {[%clk 0:00:56]}  b6 {[%clk 0:00:34]} 39. Kc6 {[%clk 0:00:54]}  f5 {[%clk 0:00:29]} 40. Kd5 {[%clk 0:00:49]}  f4 {[%clk 0:00:28]} 0-1


[Site "https://www.chess.com"]

[Event "Titled Tuesday Blitz November 07 Late 2023"]
[White "victormago"]
[Black "Jamal-Jamal-Jamal"]
[WhiteElo "2476"]
[BlackElo "2365"]
[Result "1-0"]
[Round "10"]
[TimeControl "180+1"]
[Date "2023.11.07"]
[WhiteClock "0:00:08"]
[BlackClock "0:00:44"]
[Board "58"]

1. d4 {[%clk 0:02:59]}  Nf6 {[%clk 0:02:59]} 2. c4 {[%clk 0:02:59]}  e6 {[%clk 0:02:59]} 3. Nc3 {[%clk 0:03:00]}  Bb4 {[%clk 0:02:58]} 4. Qc2 {[%clk 0:03:00]}  c5 {[%clk 0:02:58]} 5. dxc5 {[%clk 0:03:00]}  O-O {[%clk 0:02:58]} 6. Nf3 {[%clk 0:02:59]}  Na6 {[%clk 0:02:58]} 7. g3 {[%clk 0:02:59]}  Nxc5 {[%clk 0:02:57]} 8. Bg2 {[%clk 0:03:00]}  Nce4 {[%clk 0:02:57]} 9. O-O {[%clk 0:03:00]}  d5 {[%clk 0:02:57]} 10. cxd5 {[%clk 0:02:55]}  exd5 {[%clk 0:02:57]} 11. Nxe4 {[%clk 0:02:43]}  Nxe4 {[%clk 0:02:53]} 12. Be3 {[%clk 0:02:37]}  Bf5 {[%clk 0:02:49]} 13. Nh4 {[%clk 0:02:29]}  Qd7 {[%clk 0:02:31]} 14. Nxf5 {[%clk 0:02:26]}  Qxf5 {[%clk 0:02:30]} 15. Qb3 {[%clk 0:02:20]}  Bd6 {[%clk 0:02:17]} 16. Rad1 {[%clk 0:02:12]}  Nf6 {[%clk 0:02:03]} 17. Bxd5 {[%clk 0:02:10]}  Nxd5 {[%clk 0:02:04]} 18. Rxd5 {[%clk 0:02:10]}  Qe6 {[%clk 0:02:02]} 19. Rfd1 {[%clk 0:02:09]}  Be5 {[%clk 0:02:01]} 20. Qxb7 {[%clk 0:01:41]}  Rab8 {[%clk 0:01:50]} 21. Qxa7 {[%clk 0:01:36]}  Rxb2 {[%clk 0:01:49]} 22. Rd8 {[%clk 0:01:34]}  g6 {[%clk 0:01:46]} 23. Qa8 {[%clk 0:01:26]}  Rxd8 {[%clk 0:01:39]} 24. Rxd8+ {[%clk 0:01:19]}  Kg7 {[%clk 0:01:39]} 25. Rg8+ {[%clk 0:01:19]}  Kf6 {[%clk 0:01:38]} 26. Qd8+ {[%clk 0:01:18]}  Kf5 {[%clk 0:01:38]} 27. Qd3+ {[%clk 0:00:58]}  Kf6 {[%clk 0:01:34]} 28. h4 {[%clk 0:00:56]}  Qc6 {[%clk 0:01:23]} 29. Bd4 {[%clk 0:00:37]}  Rb5 {[%clk 0:01:04]} 30. a4 {[%clk 0:00:19]}  Rd5 {[%clk 0:01:01]} 31. Qf3+ {[%clk 0:00:19]}  Ke6 {[%clk 0:01:00]} 32. Bxe5 {[%clk 0:00:19]}  Kxe5 {[%clk 0:01:00]} 33. Rf8 {[%clk 0:00:14]}  Rd1+ {[%clk 0:00:56]} 34. Kg2 {[%clk 0:00:14]}  Qxf3+ {[%clk 0:00:55]} 35. Kxf3 {[%clk 0:00:14]}  Ke6 {[%clk 0:00:54]} 36. Ra8 {[%clk 0:00:11]}  Ra1 {[%clk 0:00:54]} 37. e3 {[%clk 0:00:11]}  h5 {[%clk 0:00:55]} 38. Kf4 {[%clk 0:00:11]}  Kf6 {[%clk 0:00:54]} 39. f3 {[%clk 0:00:11]}  Ra3 {[%clk 0:00:54]} 40. e4 {[%clk 0:00:11]}  Ke6 {[%clk 0:00:54]} 41. Ra6+ {[%clk 0:00:10]}  Ke7 {[%clk 0:00:54]} 42. g4 {[%clk 0:00:11]}  hxg4 {[%clk 0:00:50]} 43. fxg4 {[%clk 0:00:11]}  Kf8 {[%clk 0:00:51]} 44. h5 {[%clk 0:00:10]}  gxh5 {[%clk 0:00:51]} 45. gxh5 {[%clk 0:00:10]}  Kg7 {[%clk 0:00:52]} 46. h6+ {[%clk 0:00:11]}  Kh7 {[%clk 0:00:52]} 47. Kg5 {[%clk 0:00:09]}  Re3 {[%clk 0:00:48]} 48. Kf5 {[%clk 0:00:09]}  Rf3+ {[%clk 0:00:48]} 49. Ke5 {[%clk 0:00:09]}  Re3 {[%clk 0:00:49]} 50. a5 {[%clk 0:00:09]}  Ra3 {[%clk 0:00:49]} 51. Kd5 {[%clk 0:00:09]}  Rd3+ {[%clk 0:00:45]} 52. Kc4 {[%clk 0:00:09]}  Re3 {[%clk 0:00:45]} 53. Kd4 {[%clk 0:00:08]}  Ra3 {[%clk 0:00:45]} 54. e5 {[%clk 0:00:07]}  Ra1 {[%clk 0:00:45]} 55. Kd5 {[%clk 0:00:05]}  Rd1+ {[%clk 0:00:44]} 56. Kc5 {[%clk 0:00:04]}  Re1 {[%clk 0:00:45]} 57. Kd6 {[%clk 0:00:04]}  Rd1+ {[%clk 0:00:45]} 58. Ke7 {[%clk 0:00:05]}  Re1 {[%clk 0:00:46]} 59. Kf6 {[%clk 0:00:05]}  Rf1+ {[%clk 0:00:45]} 60. Ke7 {[%clk 0:00:05]}  Re1 {[%clk 0:00:45]} 61. e6 {[%clk 0:00:04]}  fxe6 {[%clk 0:00:44]} 62. Rxe6 {[%clk 0:00:04]}  Ra1 {[%clk 0:00:45]} 63. a6 {[%clk 0:00:05]}  Ra2 {[%clk 0:00:43]} 64. Kd7 {[%clk 0:00:05]}  Ra1 {[%clk 0:00:42]} 65. Kc7 {[%clk 0:00:05]}  Kg8 {[%clk 0:00:41]} 66. Kb7 {[%clk 0:00:05]}  Kf7 {[%clk 0:00:42]} 67. Rb6 {[%clk 0:00:05]}  Ke7 {[%clk 0:00:40]} 68. a7 {[%clk 0:00:05]}  Kd7 {[%clk 0:00:40]} 69. a8=Q {[%clk 0:00:06]}  Rxa8 {[%clk 0:00:41]} 70. Kxa8 {[%clk 0:00:06]}  Kc7 {[%clk 0:00:42]} 71. h7 {[%clk 0:00:06]}  Kxb6 {[%clk 0:00:42]} 72. h8=Q {[%clk 0:00:07]}  Kc5 {[%clk 0:00:43]} 73. Qd8 {[%clk 0:00:07]}  Kc4 {[%clk 0:00:43]} 74. Qd7 {[%clk 0:00:07]}  Kc3 {[%clk 0:00:43]} 75. Qd5 {[%clk 0:00:07]}  Kc2 {[%clk 0:00:43]} 76. Qd4 {[%clk 0:00:07]}  Kb1 {[%clk 0:00:44]} 77. Qf2 {[%clk 0:00:07]}  Kc1 {[%clk 0:00:44]} 78. Kb7 {[%clk 0:00:07]}  Kd1 {[%clk 0:00:45]} 79. Kc6 {[%clk 0:00:07]}  Kc1 {[%clk 0:00:46]} 80. Kc5 {[%clk 0:00:08]}  Kb1 {[%clk 0:00:44]} 81. Kc4 {[%clk 0:00:08]} 1-0


[Site "https://www.chess.com"]

[Event "Titled Tuesday Blitz November 07 Late 2023"]
[White "Milosevic, Milos"]
[Black "Weisz, Bryan"]
[WhiteFideId "964875"]
[BlackFideId "30934133"]
[WhiteElo "2507"]
[BlackElo "2432"]
[Result "0-1"]
[Round "10"]
[TimeControl "180+1"]
[Date "2023.11.07"]
[WhiteClock "0:00:00"]
[BlackClock "0:00:05"]
[Board "61"]

1. d4 {[%clk 0:03:00]}  d5 {[%clk 0:02:53]} 2. Bg5 {[%clk 0:03:01]}  c6 {[%clk 0:02:52]} 3. c4 {[%clk 0:02:59]}  dxc4 {[%clk 0:02:47]} 4. e4 {[%clk 0:02:54]}  Qb6 {[%clk 0:02:35]} 5. Bc1 {[%clk 0:02:48]}  e5 {[%clk 0:02:33]} 6. dxe5 {[%clk 0:02:46]}  Bc5 {[%clk 0:02:32]} 7. Qc2 {[%clk 0:02:44]}  Nh6 {[%clk 0:02:27]} 8. Bxh6 {[%clk 0:02:30]}  gxh6 {[%clk 0:02:28]} 9. Bxc4 {[%clk 0:02:30]}  Rg8 {[%clk 0:02:26]} 10. g3 {[%clk 0:02:27]}  Nd7 {[%clk 0:02:17]} 11. Nf3 {[%clk 0:02:08]}  Nf8 {[%clk 0:01:52]} 12. Nc3 {[%clk 0:02:00]}  Bg4 {[%clk 0:01:37]} 13. Na4 {[%clk 0:01:59]}  Qb4+ {[%clk 0:01:30]} 14. Nd2 {[%clk 0:01:56]}  Bd4 {[%clk 0:01:12]} 15. f3 {[%clk 0:01:32]}  Bxf3 {[%clk 0:01:11]} 16. Bxf7+ {[%clk 0:01:26]}  Kxf7 {[%clk 0:01:10]} 17. Rf1 {[%clk 0:01:27]}  Bxe5 {[%clk 0:01:05]} 18. Rxf3+ {[%clk 0:01:25]}  Kg7 {[%clk 0:01:06]} 19. O-O-O {[%clk 0:01:21]}  Ne6 {[%clk 0:01:03]} 20. Qc4 {[%clk 0:00:17]}  Qe7 {[%clk 0:00:44]} 21. Rf5 {[%clk 0:00:13]}  b5 {[%clk 0:00:38]} 22. Qf1 {[%clk 0:00:05]}  Nd4 {[%clk 0:00:38]} 23. Nc3 {[%clk 0:00:05]}  b4 {[%clk 0:00:35]} 24. Na4 {[%clk 0:00:05]}  b3 {[%clk 0:00:27]} 25. Nxb3 {[%clk 0:00:03]}  Nxf5 {[%clk 0:00:23]} 26. Qxf5 {[%clk 0:00:02]}  Qg5+ {[%clk 0:00:21]} 27. Qxg5+ {[%clk 0:00:02]}  hxg5 {[%clk 0:00:22]} 28. Rd7+ {[%clk 0:00:02]}  Kg6 {[%clk 0:00:21]} 29. Nac5 {[%clk 0:00:03]}  Rgf8 {[%clk 0:00:20]} 30. Re7 {[%clk 0:00:03]}  Rf1+ {[%clk 0:00:19]} 31. Kc2 {[%clk 0:00:04]}  Rf2+ {[%clk 0:00:19]} 32. Kd3 {[%clk 0:00:04]}  Bxb2 {[%clk 0:00:18]} 33. Re6+ {[%clk 0:00:04]}  Kh5 {[%clk 0:00:15]} 34. e5 {[%clk 0:00:03]}  Rd8+ {[%clk 0:00:15]} 35. Ke3 {[%clk 0:00:04]}  Rxh2 {[%clk 0:00:13]} 36. Ne4 {[%clk 0:00:04]}  Kg4 {[%clk 0:00:10]} 37. Rxc6 {[%clk 0:00:04]}  Bxe5 {[%clk 0:00:07]} 38. Rc5 {[%clk 0:00:05]}  Bxg3 {[%clk 0:00:04]} 39. Rxg5+ {[%clk 0:00:05]}  Kh4 {[%clk 0:00:04]} 40. Rxg3 {[%clk 0:00:05]}  Rh3 {[%clk 0:00:03]} 41. Rxh3+ {[%clk 0:00:05]}  Kxh3 {[%clk 0:00:04]} 42. Nd4 {[%clk 0:00:04]}  Kg4 {[%clk 0:00:03]} 43. a4 {[%clk 0:00:04]}  h5 {[%clk 0:00:03]} 44. Ne6 {[%clk 0:00:03]}  Rb8 {[%clk 0:00:03]} 45. Ng7 {[%clk 0:00:02]}  h4 {[%clk 0:00:02]} 46. Nf6+ {[%clk 0:00:02]}  Kg5 {[%clk 0:00:02]} 47. Ne4+ {[%clk 0:00:03]}  Kg4 {[%clk 0:00:03]} 48. Nf6+ {[%clk 0:00:02]}  Kg3 {[%clk 0:00:03]} 49. Ne4+ {[%clk 0:00:03]}  Kg2 {[%clk 0:00:04]} 50. Nf5 {[%clk 0:00:03]}  h3 {[%clk 0:00:04]} 51. Nh4+ {[%clk 0:00:04]}  Kg1 {[%clk 0:00:04]} 52. Nf3+ {[%clk 0:00:04]}  Kg2 {[%clk 0:00:05]} 53. Neg5 {[%clk 0:00:04]}  Rb3+ {[%clk 0:00:05]} 54. Kf4 {[%clk 0:00:04]}  Rb4+ {[%clk 0:00:05]} 55. Kf5 {[%clk 0:00:04]}  h2 {[%clk 0:00:05]} 56. Nxh2 {[%clk 0:00:04]}  Kxh2 {[%clk 0:00:05]} 57. a5 {[%clk 0:00:05]}  Rb5+ {[%clk 0:00:06]} 58. Kf4 {[%clk 0:00:06]}  Rxa5 {[%clk 0:00:06]} 59. Nf3+ {[%clk 0:00:06]}  Kg2 {[%clk 0:00:07]} 60. Nd2 {[%clk 0:00:07]}  Kf2 {[%clk 0:00:07]} 61. Ke4 {[%clk 0:00:07]}  Ke2 {[%clk 0:00:05]} 62. Nc4 {[%clk 0:00:08]}  Rb5 {[%clk 0:00:05]} 63. Kd4 {[%clk 0:00:08]}  a5 {[%clk 0:00:06]} 64. Kc3 {[%clk 0:00:09]}  a4 {[%clk 0:00:06]} 65. Nd6 {[%clk 0:00:09]}  Rb8 {[%clk 0:00:05]} 66. Ne4 {[%clk 0:00:08]}  a3 {[%clk 0:00:05]} 67. Ng3+ {[%clk 0:00:08]}  Ke3 {[%clk 0:00:05]} 68. Nf1+ {[%clk 0:00:02]}  Ke2 {[%clk 0:00:04]} 69. Ng3+ {[%clk 0:00:02]}  Kf3 {[%clk 0:00:05]} 70. Nf5 {[%clk 0:00:02]}  a2 {[%clk 0:00:05]} 71. Nd4+ {[%clk 0:00:03]}  Ke4 {[%clk 0:00:04]} 72. Nc2 {[%clk 0:00:04]}  Rb1 {[%clk 0:00:03]} 73. Kd2 {[%clk 0:00:04]}  Rb2 {[%clk 0:00:03]} 74. Kc3 {[%clk 0:00:04]}  Rxc2+ {[%clk 0:00:04]} 75. Kb3 {[%clk 0:00:05]}  a1=Q {[%clk 0:00:04]} 76. Kxc2 {[%clk 0:00:05]}  Qa3 {[%clk 0:00:04]} 77. Kd2 {[%clk 0:00:05]}  Qd3+ {[%clk 0:00:04]} 78. Kc1 {[%clk 0:00:05]}  Kd4 {[%clk 0:00:04]} 79. Kb2 {[%clk 0:00:06]}  Qc3+ {[%clk 0:00:05]} 80. Ka2 {[%clk 0:00:07]}  Kc4 {[%clk 0:00:05]} 81. Kb1 {[%clk 0:00:00]}  Qd2 {[%clk 0:00:05]} 0-1


[Site "https://www.chess.com"]

[Event "Titled Tuesday Blitz November 07 Late 2023"]
[White "ATM622"]
[Black "Musovic, Armin"]
[BlackFideId "939935"]
[WhiteElo "2418"]
[BlackElo "2496"]
[Result "1-0"]
[Round "10"]
[TimeControl "180+1"]
[Date "2023.11.07"]
[WhiteClock "0:00:05"]
[BlackClock "0:00:28"]
[Board "63"]

1. d4 {[%clk 0:03:00]}  d5 {[%clk 0:02:59]} 2. c4 {[%clk 0:03:00]}  c5 {[%clk 0:03:00]} 3. cxd5 {[%clk 0:02:59]}  Nf6 {[%clk 0:02:59]} 4. dxc5 {[%clk 0:02:56]}  e6 {[%clk 0:02:58]} 5. g3 {[%clk 0:02:49]}  Bxc5 {[%clk 0:02:57]} 6. Bg2 {[%clk 0:02:47]}  exd5 {[%clk 0:02:54]} 7. Nf3 {[%clk 0:02:47]}  h6 {[%clk 0:02:54]} 8. O-O {[%clk 0:02:46]}  O-O {[%clk 0:02:55]} 9. a3 {[%clk 0:02:46]}  a5 {[%clk 0:02:55]} 10. Nc3 {[%clk 0:02:37]}  Nc6 {[%clk 0:02:55]} 11. Nb5 {[%clk 0:02:29]}  Qb6 {[%clk 0:02:48]} 12. a4 {[%clk 0:02:23]}  Ne4 {[%clk 0:02:38]} 13. e3 {[%clk 0:02:22]}  Be6 {[%clk 0:02:37]} 14. Nfd4 {[%clk 0:02:19]}  Rad8 {[%clk 0:02:34]} 15. Nxe6 {[%clk 0:02:04]}  fxe6 {[%clk 0:02:34]} 16. Qg4 {[%clk 0:02:03]}  Ne5 {[%clk 0:02:30]} 17. Qe2 {[%clk 0:01:59]}  Nf6 {[%clk 0:02:16]} 18. b3 {[%clk 0:01:53]}  Nc6 {[%clk 0:01:51]} 19. Bb2 {[%clk 0:01:48]}  e5 {[%clk 0:01:50]} 20. Rac1 {[%clk 0:01:44]}  Rfe8 {[%clk 0:01:48]} 21. Rfd1 {[%clk 0:01:42]}  d4 {[%clk 0:01:48]} 22. Qc4+ {[%clk 0:01:41]}  Kh8 {[%clk 0:01:41]} 23. Qxc5 {[%clk 0:01:35]}  Qxc5 {[%clk 0:01:41]} 24. Rxc5 {[%clk 0:01:36]}  dxe3 {[%clk 0:01:42]} 25. Rxd8 {[%clk 0:01:34]}  Rxd8 {[%clk 0:01:37]} 26. fxe3 {[%clk 0:01:33]}  Rd1+ {[%clk 0:01:34]} 27. Bf1 {[%clk 0:01:33]}  Ng4 {[%clk 0:01:28]} 28. Bc1 {[%clk 0:01:17]}  e4 {[%clk 0:01:23]} 29. Kg2 {[%clk 0:00:55]}  Nxh2 {[%clk 0:01:10]} 30. Be2 {[%clk 0:00:42]}  Re1 {[%clk 0:01:10]} 31. Rc2 {[%clk 0:00:36]}  Nf3 {[%clk 0:01:06]} 32. Bxf3 {[%clk 0:00:36]}  exf3+ {[%clk 0:01:07]} 33. Kxf3 {[%clk 0:00:37]}  g5 {[%clk 0:01:05]} 34. Nd4 {[%clk 0:00:32]}  Nb4 {[%clk 0:00:59]} 35. Bb2 {[%clk 0:00:20]}  Kh7 {[%clk 0:00:58]} 36. Rc7+ {[%clk 0:00:17]}  Kg6 {[%clk 0:00:59]} 37. Nc2 {[%clk 0:00:14]}  Rf1+ {[%clk 0:00:57]} 38. Kg2 {[%clk 0:00:14]}  Rb1 {[%clk 0:00:54]} 39. Bd4 {[%clk 0:00:08]}  Rxb3 {[%clk 0:00:50]} 40. Nxb4 {[%clk 0:00:07]}  Rxb4 {[%clk 0:00:50]} 41. Kf3 {[%clk 0:00:06]}  h5 {[%clk 0:00:49]} 42. g4 {[%clk 0:00:06]}  hxg4+ {[%clk 0:00:49]} 43. Kxg4 {[%clk 0:00:06]}  Rxa4 {[%clk 0:00:47]} 44. Rxb7 {[%clk 0:00:07]}  Rb4 {[%clk 0:00:44]} 45. Rxb4 {[%clk 0:00:06]}  axb4 {[%clk 0:00:45]} 46. e4 {[%clk 0:00:05]}  b3 {[%clk 0:00:45]} 47. Kf3 {[%clk 0:00:05]}  Kh5 {[%clk 0:00:44]} 48. Be5 {[%clk 0:00:04]}  Kh4 {[%clk 0:00:38]} 49. Bb2 {[%clk 0:00:04]}  Kh5 {[%clk 0:00:38]} 50. Kg3 {[%clk 0:00:03]}  g4 {[%clk 0:00:31]} 51. Bc3 {[%clk 0:00:02]}  Kg5 {[%clk 0:00:31]} 52. Bb2 {[%clk 0:00:03]}  Kh5 {[%clk 0:00:31]} 53. Bc1 {[%clk 0:00:03]}  Kg6 {[%clk 0:00:29]} 54. Kxg4 {[%clk 0:00:03]}  Kf6 {[%clk 0:00:30]} 55. Kf4 {[%clk 0:00:04]}  Ke6 {[%clk 0:00:30]} 56. Ke3 {[%clk 0:00:04]}  b2 {[%clk 0:00:28]} 57. Bxb2 {[%clk 0:00:05]} 1-0


[Site "https://www.chess.com"]